[Event "Eurasia Open Cup 2019"]
[Site "Ekaterinburg"]
[Date "2019.08.05"]
[Round "5.39"]
[White "Bogachkova, Alena"]
[Black "Odegov, Artem"]
[Result "1/2-1/2"]
[ECO "B12"]
[WhiteElo "2085"]
[BlackElo "2261"]
[Annotator "NA"]
[PlyCount "63"]
[EventDate "2019.07.31"]
[EventType "swiss"]
[EventCountry "RUS"]
[SourceTitle "playchess.com"]
[Source "ChessBase"]
[SourceQuality "1"]
[TimeControl "5400+30"]

1. e4 {[%emt 0:04:24]} c6 {[%emt 0:00:00]} 2. d4 {[%emt 0:00:21]} d5 {[%emt 0:00:00]} 3. e5 {[%emt 0:00:12]} Bf5 {[%emt 0:00:00]} 4. h4 {[%emt 0:00:04]} h5 {[%emt 0:00:00]} 5. c4 {[%emt 0:00:14]} e6 {[%emt 0:00:27]} 6. Nc3 {[%emt 0:00:04]} Ne7 {[%emt 0:00:00]} 7. Bg5 {[%emt 0:01:23]} Qb6 {[%emt 0:02:16]} 8. Qd2 {[%emt 0:03:02]} Nd7 {[%emt 0:12:46]} 9. cxd5 {[%emt 0:24:03]} Nxd5 {[%emt 0:04:57]} 10. Nxd5 {[%emt 0:13:02]} cxd5 {[%emt 0:01:16]} 11. Ne2 {[%emt 0:00:25]} Rc8 {[%emt 0:09:11]} 12. Nc3 {[%emt 0:00:18]} f6 $11 {[%emt 0:06:06]} 13. Be3 {[%emt 0:09:29]} Bb4 {[%emt 0:07:12]} 14. Rc1 {[%emt 0:07:17]} Qa5 {[%emt 0:11:01]} 15. exf6 {[%emt 0:07:21]} gxf6 {[%emt 0:06:04]} 16. Bd3 {[%emt 0:02:14]} Bxd3 {[%emt 0:02:18]} 17. Qxd3 {[%emt 0:00:36]} Bxc3+ {[%emt 0:00:46]} 18. Rxc3 {[%emt 0:01:58]} Rxc3 {[%emt 0:00:42]} 19. bxc3 {[%emt 0:08:58]} Kf7 {[%emt 0:02:17]} 20. O-O {[%emt 0:01:22]} Qxa2 {[%emt 0:05:38]} 21. Rb1 {[%emt 0:01:51]} Nb6 {[%emt 0:01:50]} 22. Bf4 {[%emt 0:00:19]} Qa4 {[%emt 0:19:14]} 23. Rb5 {[%emt 0:05:55]} e5 {[%emt 0:02:59]} 24. Bxe5 {[%emt 0:00:38]} fxe5 {[%emt 0:03:04]} 25. Qf5+ {[%emt 0:00:36]} Kg8 {[%emt 0:00:52]} 26. Qe6+ {[%emt 0:02:50]} Kf8 {[%emt 0:00:32]} 27. Qf6+ {[%emt 0:00:21]} Kg8 {[%emt 0:00:36]} 28. Qg6+ {[%emt 0:02:26]} Kf8 {[%emt 0:00:00]} 29. Qf6+ {[%emt 0:00:37]} Kg8 {[%emt 0:00:10]} 30. Qg6+ {[%emt 0:00:02]} Kf8 {[%emt 0:00:00]} 31. Qf6+ {[%emt 0:00:31]} Kg8 {[%emt 0:00:13]} 32. Qg6+ {[%emt 0:00:00]} 1/2-1/2

[Event "Eurasia Open Cup 2019"]
[Site "Ekaterinburg"]
[Date "2019.08.05"]
[Round "5.40"]
[White "Zasukhin, Vadim"]
[Black "Chekletsov, Egor"]
[Result "1-0"]
[ECO "B41"]
[WhiteElo "2249"]
[BlackElo "2088"]
[Annotator "ChessBase"]
[PlyCount "51"]
[EventDate "2019.07.31"]
[EventType "swiss"]
[EventCountry "RUS"]
[SourceTitle "playchess.com"]
[Source "ChessBase"]
[SourceQuality "1"]
[TimeControl "5400+30"]

1. e4 {[%emt 0:00:00]} c5 {[%emt 0:00:00]} 2. Nf3 {[%emt 0:00:00]} e6 {[%emt 0:00:20]} 3. c4 {[%emt 0:00:00]} a6 {[%emt 0:01:20]} 4. Nc3 {[%emt 0:00:26]} Qc7 {[%emt 0:01:10]} 5. d4 {[%emt 0:00:24]} cxd4 {[%emt 0:00:10]} 6. Nxd4 {[%emt 0:00:06]} Nf6 {[%emt 0:00:59]} 7. Qd3 {[%emt 0:03:15]} Nc6 {[%emt 0:01:55]} 8. Nxc6 {[%emt 0:00:54]} dxc6 {[%emt 0:00:36]} 9. f4 {[%emt 0:00:45]} e5 {[%emt 0:03:03]} 10. f5 {[%emt 0:00:05]} Bc5 {[%emt 0:04:17]} 11. Be3 {[%emt 0:00:20]} Qb6 {[%emt 0:02:41]} 12. Bxc5 {[%emt 0:01:56]} Qxc5 {[%emt 0:00:10]} 13. O-O-O {[%emt 0:00:05]} O-O {[%emt 0:00:50]} 14. Qd6 {[%emt 0:03:47]} Nxe4 {[%emt 0:13:02]} 15. Nxe4 {[%emt 0:02:16]} Qe3+ {[%emt 0:04:02]} 16. Nd2 {[%emt 0:00:10]} Bxf5 {[%emt 0:00:05]} 17. Qa3 {[%emt 0:00:26]} Qh6 {[%emt 0:00:50]} 18. Qf3 {[%emt 0:08:07]} Qg6 {[%emt 0:05:00]} 19. Be2 {[%emt 0:01:11]} Rad8 {[%emt 0:01:01]} 20. g4 {[%emt 0:10:09]} Bc2 {[%emt 0:00:41]} 21. Rde1 {[%emt 0:03:24]} f5 {[%emt 0:22:19]} 22. Kxc2 {[%emt 0:07:53]} fxg4+ {[%emt 0:00:10]} 23. Bd3 {[%emt 0:00:00]} gxf3 {[%emt 0:06:45]} 24. Bxg6 {[%emt 0:00:05]} f2 {[%emt 0:00:05]} 25. Rxe5 {[%emt 0:01:16]} hxg6 {[%emt 0:00:25]} 26. Rf1 {[%emt 0:00:05]} 1-0

[Event "Eurasia Open Cup 2019"]
[Site "Ekaterinburg"]
[Date "2019.08.05"]
[Round "5.41"]
[White "Abramov, Ilya"]
[Black "Akhtariev, Andrey"]
[Result "0-1"]
[ECO "A41"]
[WhiteElo "2065"]
[BlackElo "2243"]
[Annotator "NA"]
[PlyCount "86"]
[EventDate "2019.07.31"]
[EventType "swiss"]
[EventCountry "RUS"]
[SourceTitle "playchess.com"]
[Source "ChessBase"]
[SourceQuality "1"]
[TimeControl "5400+30"]

1. d4 {[%emt 0:00:00]} c6 {[%emt 0:00:00]} 2. c4 {[%emt 0:01:05]} d6 {[%emt 0:01:04]} 3. Nc3 {[%emt 0:00:11]} Qc7 {[%emt 0:00:54]} 4. g3 {[%emt 0:00:20]} e5 {[%emt 0:01:16]} 5. Bg2 {[%emt 0:00:50]} Ne7 {[%emt 0:00:25]} 6. Nf3 {[%emt 0:00:50]} Be6 {[%emt 0:01:25]} 7. b3 {[%emt 0:02:01]} h6 {[%emt 0:02:24]} 8. O-O {[%emt 0:01:50]} Ng6 {[%emt 0:01:20]} 9. Bb2 {[%emt 0:06:00]} Be7 {[%emt 0:09:04]} 10. Ne1 {[%emt 0:01:05]} O-O {[%emt 0:03:42]} 11. e3 {[%emt 0:01:43]} f5 {[%emt 0:00:10]} 12. f4 {[%emt 0:04:03]} e4 {[%emt 0:06:05]} 13. Qh5 {[%emt 0:03:06]} Nh8 {[%emt 0:02:52]} 14. d5 {[%emt 0:00:46]} cxd5 {[%emt 0:04:09]} 15. cxd5 {[%emt 0:04:49]} Bd7 {[%emt 0:02:42]} 16. Rc1 {[%emt 0:00:15]} Qb6 $11 {[%emt 0:03:29]} 17. Nc2 {[%emt 0:01:57]} Kh7 {[%emt 0:00:21]} 18. Rfd1 {[%emt 0:00:35]} Na6 {[%emt 0:00:35]} 19. Bf1 {[%emt 0:00:35]} g5 {[%emt 0:02:02]} 20. Bb5 {[%emt 0:09:04]} Bxb5 {[%emt 0:17:16]} 21. Nxb5 {[%emt 0:14:54]} Qxb5 {[%emt 0:00:00]} 22. Bxh8 {[%emt 0:00:10]} gxf4 {[%emt 0:00:10]} 23. exf4 {[%emt 0:02:06]} Nc5 {[%emt 0:02:06]} 24. Ne3 {[%emt 0:01:17]} Qe8 {[%emt 0:01:01]} 25. Qxe8 {[%emt 0:12:15]} Raxe8 {[%emt 0:00:29]} 26. Bd4 {[%emt 0:00:19]} b6 {[%emt 0:01:09]} 27. b4 {[%emt 0:00:58]} Na6 {[%emt 0:04:41]} 28. a3 {[%emt 0:03:26]} Kg6 {[%emt 0:00:21]} 29. Rc6 {[%emt 0:01:12]} Rd8 {[%emt 0:00:19]} 30. Kf2 {[%emt 0:02:16]} Rd7 {[%emt 0:07:39]} 31. Rdc1 {[%emt 0:01:20]} Rfd8 {[%emt 0:02:39]} 32. h3 {[%emt 0:02:18]} h5 {[%emt 0:02:29]} 33. g4 {[%emt 0:00:40]} hxg4 {[%emt 0:02:23]} 34. hxg4 {[%emt 0:01:19]} Bh4+ {[%emt 0:00:05]} 35. Kg2 {[%emt 0:00:21]} fxg4 {[%emt 0:00:22]} 36. Rh1 {[%emt 0:00:49]} Be7 {[%emt 0:01:15]} 37. Kg3 {[%emt 0:03:25]} Nc7 {[%emt 0:01:57]} 38. f5+ {[%emt 0:02:35]} Kf7 {[%emt 0:02:00]} 39. Rh7+ {[%emt 0:01:06]} Ke8 {[%emt 0:00:08]} 40. f6 {[%emt 0:01:48]} Bxf6 {[%emt 0:06:17]} 41. Rxd7 {[%emt 0:04:05]} Kxd7 {[%emt 0:00:03]} 42. Bxf6 {[%emt 0:00:01]} Rf8 {[%emt 0:01:16]} 43. Bg5 {[%emt 0:00:02]} Nxd5 {[%emt 0:00:01]} 0-1

[Event "Eurasia Open Cup 2019"]
[Site "Ekaterinburg"]
[Date "2019.08.05"]
[Round "5.42"]
[White "Vinokur, Yuliya"]
[Black "Schepetkova, Margarita"]
[Result "0-1"]
[ECO "A62"]
[WhiteElo "2013"]
[BlackElo "2241"]
[Annotator "NA"]
[PlyCount "94"]
[EventDate "2019.07.31"]
[EventType "swiss"]
[EventCountry "RUS"]
[SourceTitle "playchess.com"]
[Source "ChessBase"]
[SourceQuality "1"]
[TimeControl "5400+30"]

1. d4 {[%emt 0:00:00]} Nf6 {[%emt 0:01:14]} 2. c4 {[%emt 0:00:00]} e6 {[%emt 0:00:05]} 3. g3 {[%emt 0:00:25]} c5 {[%emt 0:00:31]} 4. d5 {[%emt 0:03:30]} exd5 {[%emt 0:00:10]} 5. cxd5 {[%emt 0:00:00]} d6 {[%emt 0:00:10]} 6. Bg2 {[%emt 0:00:05]} g6 {[%emt 0:00:05]} 7. Nc3 {[%emt 0:00:20]} Bg7 {[%emt 0:00:10]} 8. Nf3 {[%emt 0:00:25]} O-O {[%emt 0:00:05]} 9. O-O {[%emt 0:00:05]} Re8 {[%emt 0:00:15]} 10. Nd2 {[%emt 0:00:35]} Nbd7 {[%emt 0:00:20]} 11. Nc4 {[%emt 0:09:48]} Ne5 {[%emt 0:00:46]} 12. Nxe5 {[%emt 0:00:31]} Rxe5 {[%emt 0:00:10]} 13. Bf4 {[%emt 0:00:05]} Re8 {[%emt 0:00:35]} 14. e4 {[%emt 0:03:06]} a6 {[%emt 0:01:05]} 15. a4 {[%emt 0:00:30]} Rb8 {[%emt 0:16:36]} 16. Qd3 {[%emt 0:04:19]} Ng4 {[%emt 0:06:04]} 17. Rfe1 {[%emt 0:12:05]} g5 {[%emt 0:02:32]} 18. Be3 {[%emt 0:01:52]} Qf6 {[%emt 0:03:49]} 19. f3 {[%emt 0:05:39]} Nxe3 {[%emt 0:00:26]} 20. Rxe3 {[%emt 0:03:30]} h5 {[%emt 0:04:48]} 21. Kh1 {[%emt 0:04:48]} h4 {[%emt 0:00:16]} 22. gxh4 {[%emt 0:01:46]} gxh4 {[%emt 0:00:30]} 23. Rg1 {[%emt 0:00:10]} b5 {[%emt 0:00:55]} 24. axb5 {[%emt 0:03:04]} axb5 {[%emt 0:00:00]} 25. Ne2 {[%emt 0:00:11]} c4 {[%emt 0:01:36]} 26. Qa3 {[%emt 0:06:47]} b4 {[%emt 0:00:56]} 27. Qa2 {[%emt 0:00:10]} Qxb2 {[%emt 0:05:41]} 28. Qxc4 {[%emt 0:01:10]} Qd2 {[%emt 0:00:10]} 29. Qc1 {[%emt 0:11:30]} Qxc1 {[%emt 0:00:41]} 30. Rxc1 {[%emt 0:00:05]} Bd7 {[%emt 0:02:03]} 31. Rb1 {[%emt 0:01:47]} Ba4 {[%emt 0:00:10]} 32. f4 {[%emt 0:06:16]} Bc2 {[%emt 0:00:19]} 33. Re1 {[%emt 0:00:05]} b3 {[%emt 0:00:43]} 34. e5 {[%emt 0:00:49]} b2 {[%emt 0:00:39]} 35. Nc3 {[%emt 0:00:05]} Rb3 {[%emt 0:09:29]} 36. Bh3 {[%emt 0:04:16]} Rxc3 {[%emt 0:01:30]} 37. Rxc3 {[%emt 0:00:10]} b1=Q {[%emt 0:00:00]} 38. Rxb1 {[%emt 0:00:09]} Bxb1 {[%emt 0:00:05]} 39. Re3 {[%emt 0:01:19]} dxe5 {[%emt 0:00:43]} 40. d6 {[%emt 0:00:09]} e4 {[%emt 0:00:23]} 41. d7 {[%emt 0:01:01]} Rd8 {[%emt 0:00:09]} 42. Bf5 {[%emt 0:00:05]} Bf6 {[%emt 0:00:19]} 43. Kg2 {[%emt 0:01:10]} Bd3 {[%emt 0:00:05]} 44. Re1 {[%emt 0:01:18]} Bb5 {[%emt 0:01:02]} 45. Rd1 {[%emt 0:01:36]} e3 {[%emt 0:00:18]} 46. Kf3 {[%emt 0:01:53]} e2 {[%emt 0:00:23]} 47. Rc1 {[%emt 0:00:26]} Bc3 {[%emt 0:01:12]} 0-1

[Event "Eurasia Open Cup 2019"]
[Site "Ekaterinburg"]
[Date "2019.08.05"]
[Round "5.43"]
[White "Rudometov, Maxim"]
[Black "Kozlov, Denis"]
[Result "1/2-1/2"]
[ECO "D00"]
[WhiteElo "2233"]
[BlackElo "2013"]
[Annotator "NA"]
[PlyCount "254"]
[EventDate "2019.07.31"]
[EventType "swiss"]
[EventCountry "RUS"]
[SourceTitle "playchess.com"]
[Source "ChessBase"]
[SourceQuality "1"]
[TimeControl "5400+30"]

1. d4 {[%emt 1:23:32]} Nf6 {[%emt 1:28:34]} 2. Bf4 {[%emt 0:00:33]} d5 {[%emt 0:00:21]} 3. e3 {[%emt 0:00:17]} c5 {[%emt 0:00:00]} 4. c3 {[%emt 0:00:02]} Nc6 {[%emt 0:00:20]} 5. Nd2 {[%emt 0:00:22]} Bf5 {[%emt 0:00:00]} 6. Ngf3 {[%emt 0:00:00]} e6 {[%emt 0:00:41]} 7. Be2 {[%emt 0:00:00]} Bd6 {[%emt 0:00:41]} 8. Bg3 {[%emt 0:00:00]} O-O {[%emt 0:00:58]} 9. O-O {[%emt 0:00:28]} h6 {[%emt 0:00:38]} 10. Qa4 {[%emt 0:00:00]} a6 {[%emt 0:00:30]} 11. dxc5 {[%emt 0:00:29]} Bxc5 {[%emt 0:00:18]} 12. Nd4 {[%emt 0:01:41]} Nxd4 {[%emt 0:00:11]} 13. cxd4 {[%emt 0:01:40]} b5 {[%emt 0:00:34]} 14. Qb3 {[%emt 0:01:28]} Be7 {[%emt 0:00:17]} 15. Rfc1 {[%emt 0:00:17]} Qa5 {[%emt 0:00:10]} 16. Qd1 {[%emt 0:00:17]} Rfc8 {[%emt 0:00:05]} 17. Nb3 {[%emt 0:00:34]} Qb6 {[%emt 0:00:00]} 18. Rxc8+ {[%emt 0:00:17]} Rxc8 {[%emt 0:00:34]} 19. Rc1 {[%emt 0:00:17]} Rc6 {[%emt 0:00:53]} 20. f3 {[%emt 0:00:18]} Ne8 {[%emt 0:00:36]} 21. Rxc6 {[%emt 0:00:00]} Qxc6 {[%emt 0:00:19]} 22. Qc1 {[%emt 0:00:18]} Qxc1+ {[%emt 0:00:18]} 23. Nxc1 {[%emt 0:00:00]} Nd6 {[%emt 0:00:19]} 24. Bxd6 {[%emt 0:00:17]} Bxd6 {[%emt 0:00:18]} 25. Nb3 {[%emt 0:00:00]} e5 {[%emt 0:00:19]} 26. g3 {[%emt 0:00:18]} Kf8 {[%emt 0:00:18]} 27. Nc5 {[%emt 0:00:18]} Bc8 {[%emt 0:00:54]} 28. b4 {[%emt 0:00:36]} Ke7 {[%emt 0:00:35]} 29. Kf2 {[%emt 0:00:18]} f6 {[%emt 0:00:00]} 30. Bd3 {[%emt 0:00:36]} Bxc5 {[%emt 0:00:18]} 31. dxc5 {[%emt 0:00:00]} g5 {[%emt 0:00:19]} 32. a3 {[%emt 0:00:52]} Bd7 {[%emt 0:00:00]} 33. Bh7 {[%emt 0:00:35]} Kf8 {[%emt 0:00:18]} 34. Bc2 {[%emt 0:03:31]} Ke7 {[%emt 0:00:53]} 35. h4 {[%emt 0:00:00]} Kf8 {[%emt 0:00:17]} 36. hxg5 {[%emt 0:00:00]} hxg5 {[%emt 0:00:52]} 37. f4 {[%emt 0:00:00]} Ke7 {[%emt 0:00:35]} 38. Kg2 {[%emt 0:00:54]} Bc8 {[%emt 0:00:53]} 39. Kf3 {[%emt 0:01:12]} Bd7 {[%emt 0:00:19]} 40. Bb3 {[%emt 0:00:00]} gxf4 {[%emt 0:00:36]} 41. Bxd5 {[%emt 0:00:18]} fxe3 {[%emt 0:00:36]} 42. Kxe3 {[%emt 0:00:53]} f5 {[%emt 0:00:34]} 43. Kf3 {[%emt 0:08:02]} Bc8 {[%emt 0:05:19]} 44. Kg2 {[%emt 0:00:30]} Kf6 {[%emt 0:00:30]} 45. Kf3 {[%emt 0:00:30]} Kg5 {[%emt 0:00:30]} 46. Ba8 {[%emt 0:00:30]} Kf6 {[%emt 0:00:30]} 47. Ke3 {[%emt 0:00:30]} Ke7 {[%emt 0:00:30]} 48. Kd2 {[%emt 0:00:30]} Kd8 {[%emt 0:00:30]} 49. Kc3 {[%emt 0:00:30]} Kc7 {[%emt 0:00:30]} 50. Bd5 {[%emt 0:00:30]} Bd7 {[%emt 0:00:30]} 51. Kd3 {[%emt 0:00:30]} Bc8 {[%emt 0:00:30]} 52. Ke3 {[%emt 0:00:30]} Bd7 {[%emt 0:00:30]} 53. Kf2 {[%emt 0:00:30]} Bc8 {[%emt 0:00:30]} 54. Kg2 {[%emt 0:00:30]} Kd8 {[%emt 0:00:30]} 55. Kh3 {[%emt 0:00:30]} Ke7 {[%emt 0:00:30]} 56. Ba8 {[%emt 0:00:30]} Kf6 {[%emt 0:00:30]} 57. Kg2 {[%emt 0:00:30]} Ke7 {[%emt 0:00:30]} 58. Kf2 {[%emt 0:00:30]} Kf6 {[%emt 0:00:30]} 59. Bc6 {[%emt 0:00:30]} Ke6 {[%emt 0:00:30]} 60. Ke3 {[%emt 0:00:30]} Ke7 {[%emt 0:00:30]} 61. Kd3 {[%emt 0:00:30]} Kd8 {[%emt 0:00:30]} 62. Ke3 {[%emt 0:00:30]} Ke7 {[%emt 0:00:30]} 63. Bd5 {[%emt 0:00:30]} Kf6 {[%emt 0:00:30]} 64. Bf3 {[%emt 0:00:30]} Ke7 {[%emt 0:00:30]} 65. Kd2 {[%emt 0:00:30]} Kf6 {[%emt 0:00:30]} 66. Kc3 {[%emt 0:00:30]} Ke7 {[%emt 0:00:30]} 67. Bd5 {[%emt 0:00:30]} Kf6 {[%emt 0:00:30]} 68. Kb3 {[%emt 0:00:30]} Ke7 {[%emt 0:00:30]} 69. a4 {[%emt 0:00:30]} Be6 {[%emt 0:00:30]} 70. Bxe6 {[%emt 0:00:30]} bxa4+ {[%emt 0:00:30]} 71. Kxa4 {[%emt 0:00:30]} Kxe6 {[%emt 0:00:30]} 72. Ka5 {[%emt 0:00:30]} e4 {[%emt 0:00:30]} 73. c6 {[%emt 0:00:30]} e3 {[%emt 0:00:30]} 74. Kb6 {[%emt 0:00:30]} e2 {[%emt 0:00:30]} 75. c7 {[%emt 0:00:30]} e1=Q {[%emt 0:00:30]} 76. c8=Q+ {[%emt 0:00:30]} Ke7 {[%emt 0:00:30]} 77. Qc7+ {[%emt 0:00:30]} Ke6 {[%emt 0:00:30]} 78. Qc4+ {[%emt 0:00:30]} Ke7 {[%emt 0:00:30]} 79. Qf4 {[%emt 0:00:30]} Qe6+ {[%emt 0:00:30]} 80. Kb7 {[%emt 0:00:30]} Qd5+ {[%emt 0:00:30]} 81. Kxa6 {[%emt 0:00:30]} Qc6+ {[%emt 0:00:30]} 82. Ka7 {[%emt 0:00:30]} Qd7+ {[%emt 0:00:30]} 83. Kb6 {[%emt 0:00:30]} Qe6+ {[%emt 0:00:30]} 84. Kc5 {[%emt 0:00:30]} Qc8+ {[%emt 0:00:30]} 85. Kd4 {[%emt 0:00:30]} Qd7+ {[%emt 0:00:30]} 86. Kc3 {[%emt 0:00:30]} Qc6+ {[%emt 0:00:30]} 87. Kd2 {[%emt 0:00:30]} Qd5+ {[%emt 0:00:30]} 88. Kc2 {[%emt 0:00:30]} Qc6+ {[%emt 0:00:30]} 89. Kd3 {[%emt 0:00:30]} Qd5+ {[%emt 0:00:30]} 90. Kc3 {[%emt 0:00:30]} Qc6+ {[%emt 0:00:30]} 91. Qc4 {[%emt 0:00:30]} Qf3+ {[%emt 0:00:30]} 92. Qd3 {[%emt 0:00:30]} Qc6+ {[%emt 0:00:30]} 93. Kb3 {[%emt 0:00:30]} Qe6+ {[%emt 0:00:30]} 94. Ka3 {[%emt 0:00:30]} Qc6 {[%emt 0:00:30]} 95. b5 {[%emt 0:00:30]} Qc5+ {[%emt 0:00:30]} 96. Ka4 {[%emt 0:00:30]} Ke6 {[%emt 0:00:30]} 97. Qb3+ {[%emt 0:00:30]} Kd7 {[%emt 0:00:30]} 98. Qf7+ {[%emt 0:00:30]} Kc8 {[%emt 0:00:30]} 99. Qe6+ {[%emt 0:00:30]} Kb8 {[%emt 0:00:30]} 100. Qe8+ {[%emt 0:00:30]} Kb7 {[%emt 0:00:30]} 101. Qf7+ {[%emt 0:00:30]} Kb6 {[%emt 0:00:30]} 102. Qe6+ {[%emt 0:00:30]} Kb7 {[%emt 0:00:30]} 103. Qb3 {[%emt 0:00:30]} Kb6 {[%emt 0:00:30]} 104. Qd3 {[%emt 0:00:30]} Kb7 {[%emt 0:00:30]} 105. Ka5 {[%emt 0:00:30]} Qc7+ {[%emt 0:00:30]} 106. Kb4 {[%emt 0:00:30]} Qe7+ {[%emt 0:00:30]} 107. Kc4 {[%emt 0:00:30]} Qc7+ {[%emt 0:00:30]} 108. Kb3 {[%emt 0:00:30]} Qc5 {[%emt 0:00:30]} 109. Qc4 {[%emt 0:00:30]} Qe3+ {[%emt 0:00:30]} 110. Qc3 {[%emt 0:00:30]} Qe6+ {[%emt 0:00:30]} 111. Kb4 {[%emt 0:00:30]} Qe7+ {[%emt 0:00:30]} 112. Ka4 {[%emt 0:00:30]} Qe6 {[%emt 0:00:30]} 113. Qd3 {[%emt 0:00:30]} Kb6 {[%emt 0:00:30]} 114. Qd4+ {[%emt 0:00:30]} Kb7 {[%emt 0:00:30]} 115. Ka3 {[%emt 0:00:30]} Qe7+ {[%emt 0:00:30]} 116. Kb3 {[%emt 0:00:30]} Qe6+ {[%emt 0:00:30]} 117. Ka3 {[%emt 0:00:30]} Qe7+ {[%emt 0:00:30]} 118. Ka4 {[%emt 0:00:30]} Qe6 {[%emt 0:00:30]} 119. Qd3 {[%emt 0:00:30]} Kb6 {[%emt 0:00:30]} 120. Qd8+ {[%emt 0:00:30]} Kb7 {[%emt 0:00:30]} 121. Qd4 {[%emt 0:00:30]} Qa2+ {[%emt 0:00:30]} 122. Kb4 {[%emt 0:00:30]} Qe6 {[%emt 0:00:30]} 123. Qd3 {[%emt 0:00:30]} Qe7+ {[%emt 0:00:30]} 124. Kc4 {[%emt 0:00:30]} Qc7+ {[%emt 0:00:30]} 125. Kb3 {[%emt 0:00:30]} Qe5 {[%emt 0:00:30]} 126. Kc2 {[%emt 0:00:30]} Qc5+ {[%emt 0:00:30]} 127. Kb3 {[%emt 0:00:30]} Kb6 {[%emt 0:00:30]} 1/2-1/2

[Event "Eurasia Open Cup 2019"]
[Site "Ekaterinburg"]
[Date "2019.08.05"]
[Round "5.44"]
[White "Dubnikova, Anastasia"]
[Black "Pranizin, Gennady"]
[Result "0-1"]
[ECO "D26"]
[WhiteElo "1991"]
[BlackElo "2232"]
[Annotator "NA"]
[PlyCount "70"]
[EventDate "2019.07.31"]
[EventType "swiss"]
[EventCountry "RUS"]
[SourceTitle "playchess.com"]
[Source "ChessBase"]
[SourceQuality "1"]
[TimeControl "5400+30"]

1. d4 {[%emt 0:00:00]} d5 {[%emt 0:00:44]} 2. c4 {[%emt 0:00:00]} dxc4 {[%emt 0:00:40]} 3. Nf3 {[%emt 0:00:00]} Nf6 {[%emt 0:00:46]} 4. e3 {[%emt 0:01:15]} e6 {[%emt 0:02:10]} 5. Bxc4 {[%emt 0:03:06]} Bd6 {[%emt 0:00:10]} 6. O-O {[%emt 0:02:19]} O-O {[%emt 0:00:10]} 7. Qe2 {[%emt 0:01:25]} Nc6 {[%emt 0:06:30]} 8. Rd1 {[%emt 0:05:47]} Qe7 {[%emt 0:02:15]} 9. Nc3 {[%emt 0:19:55]} e5 {[%emt 0:02:26]} 10. d5 {[%emt 0:04:13]} e4 {[%emt 0:07:32]} 11. dxc6 {[%emt 0:01:37]} exf3 {[%emt 0:02:00]} 12. Qxf3 {[%emt 0:00:36]} bxc6 {[%emt 0:01:32]} 13. h3 {[%emt 0:03:04]} Qe5 {[%emt 0:04:38]} 14. Qf4 {[%emt 0:12:26]} Qh5 {[%emt 0:01:42]} 15. Be2 {[%emt 0:02:27]} Qa5 {[%emt 0:06:15]} 16. Qa4 {[%emt 0:02:54]} Qe5 {[%emt 0:00:25]} 17. f4 {[%emt 0:00:51]} Qe7 {[%emt 0:04:24]} 18. e4 {[%emt 0:02:17]} Bc5+ {[%emt 0:01:28]} 19. Kh1 {[%emt 0:00:56]} Ng4 {[%emt 0:03:57]} 20. Bxg4 {[%emt 0:05:54]} Bxg4 {[%emt 0:00:10]} 21. Rd3 {[%emt 0:00:41]} Rad8 {[%emt 0:12:37]} 22. Qc2 {[%emt 0:00:53]} Qh4 {[%emt 0:03:37]} 23. Kh2 {[%emt 0:09:22]} Rxd3 {[%emt 0:02:50]} 24. Qxd3 {[%emt 0:00:09]} Rd8 {[%emt 0:00:09]} 25. Qf1 {[%emt 0:01:30]} Bf2 {[%emt 0:01:28]} 26. e5 {[%emt 0:02:53]} Bf5 {[%emt 0:03:59]} 27. a4 {[%emt 0:05:13]} Rd3 {[%emt 0:11:27]} 28. Ra3 {[%emt 0:00:30]} Bc5 {[%emt 0:10:02]} 29. Rb3 {[%emt 0:01:49]} Bxh3 {[%emt 0:01:00]} 30. gxh3 {[%emt 0:00:53]} Qg3+ {[%emt 0:00:16]} 31. Kh1 {[%emt 0:00:07]} Rf3 {[%emt 0:00:08]} 32. Rb8+ {[%emt 0:01:28]} Bf8 {[%emt 0:00:03]} 33. Qxf3 {[%emt 0:02:03]} Qxf3+ {[%emt 0:00:04]} 34. Kg1 {[%emt 0:00:08]} f6 {[%emt 0:00:19]} 35. exf6 {[%emt 0:00:45]} Kf7 {[%emt 0:00:31]} 0-1

[Event "Eurasia Open Cup 2019"]
[Site "Ekaterinburg"]
[Date "2019.08.05"]
[Round "5.45"]
[White "Morgachev, Sergey"]
[Black "Navrodskiy, Boris"]
[Result "1-0"]
[ECO "A84"]
[WhiteElo "1965"]
[BlackElo "2223"]
[Annotator "NA"]
[PlyCount "83"]
[EventDate "2019.07.31"]
[EventType "swiss"]
[EventCountry "RUS"]
[SourceTitle "playchess.com"]
[Source "ChessBase"]
[SourceQuality "1"]
[TimeControl "5400+30"]

1. d4 {[%emt 0:00:00]} d5 {[%emt 0:00:00]} 2. c4 {[%emt 0:00:00]} e6 {[%emt 0:00:00]} 3. Nf3 {[%emt 0:00:00]} c6 {[%emt 0:00:09]} 4. e3 {[%emt 0:00:00]} Bd6 {[%emt 0:00:10]} 5. Bd3 {[%emt 0:00:15]} f5 {[%emt 0:00:10]} 6. O-O {[%emt 0:00:10]} Nf6 {[%emt 0:00:00]} 7. b3 {[%emt 0:00:10]} Qe7 {[%emt 0:00:25]} 8. Bb2 {[%emt 0:00:15]} O-O {[%emt 0:00:05]} 9. Nc3 {[%emt 0:00:41]} Ne4 {[%emt 0:01:04]} 10. Rc1 {[%emt 0:00:51]} Nd7 {[%emt 0:00:15]} 11. Ne2 {[%emt 0:05:26]} Qf6 {[%emt 0:03:54]} 12. Nf4 {[%emt 0:19:05]} g5 {[%emt 0:19:10]} 13. Nh5 {[%emt 0:03:43]} Qh6 {[%emt 0:01:16]} 14. Ne5 {[%emt 0:01:17]} Nef6 {[%emt 0:12:46]} 15. Nxf6+ {[%emt 0:02:31]} Nxf6 {[%emt 0:02:38]} 16. f3 {[%emt 0:17:35]} Bd7 {[%emt 0:05:00]} 17. Qd2 {[%emt 0:10:31]} Be8 {[%emt 0:23:16]} 18. Bc3 {[%emt 0:07:30]} Nd7 {[%emt 0:06:29]} 19. f4 {[%emt 0:05:25]} Qg7 {[%emt 0:03:40]} 20. Bb4 {[%emt 0:04:27]} Bxb4 {[%emt 0:01:10]} 21. Qxb4 {[%emt 0:00:05]} Nxe5 {[%emt 0:04:27]} 22. dxe5 {[%emt 0:00:27]} Rd8 {[%emt 0:01:13]} 23. cxd5 {[%emt 0:00:53]} exd5 {[%emt 0:00:05]} 24. Qd4 {[%emt 0:02:49]} gxf4 {[%emt 0:03:54]} 25. exf4 {[%emt 0:00:21]} Bh5 {[%emt 0:01:47]} 26. Rf2 {[%emt 0:01:47]} a6 {[%emt 0:00:52]} 27. Rc3 {[%emt 0:01:05]} Qe7 {[%emt 0:00:17]} 28. b4 {[%emt 0:04:24]} Qe6 {[%emt 0:01:35]} 29. a4 {[%emt 0:03:44]} Be8 {[%emt 0:01:47]} 30. Rb2 {[%emt 0:03:53]} Rf7 {[%emt 0:00:57]} 31. b5 {[%emt 0:01:46]} axb5 {[%emt 0:00:07]} 32. axb5 {[%emt 0:00:04]} Ra8 {[%emt 0:02:59]} 33. Rc1 {[%emt 0:01:34]} Rg7 {[%emt 0:00:27]} 34. bxc6 {[%emt 0:00:34]} bxc6 {[%emt 0:01:02]} 35. Rcb1 {[%emt 0:01:35]} Qg6 {[%emt 0:01:40]} 36. Bf1 {[%emt 0:00:59]} Rga7 {[%emt 0:01:16]} 37. Rb8 {[%emt 0:01:14]} Ra4 {[%emt 0:00:14]} 38. R8b4 {[%emt 0:01:03]} Ra2 {[%emt 0:00:16]} 39. Rb8 {[%emt 0:00:31]} R8a4 {[%emt 0:00:13]} 40. Qe3 {[%emt 0:00:32]} R4a3 {[%emt 0:02:22]} 41. Qc5 {[%emt 0:00:28]} Rf3 {[%emt 0:00:26]} 42. Rxe8+ {[%emt 0:00:31]} 1-0